fUST/lending_fUST_20240105
["ID","MTS","AMOUNT","RATE_DAILY","PERIOD"]
[310303862,1704468642014,-500.0,0.00036818,7]
[310303863,1704468642024,-500.0,0.00036818,7]
[310303864,1704468642034,-500.0,0.00036818,7]
[310303865,1704468642043,-586.1627845,0.00036818,7]
[310303866,1704468642052,-500.0,0.00036819,7]
[310303867,1704468642061,-500.0,0.00036819,7]
[310303868,1704468642071,-500.0,0.00036819,7]
[310303869,1704468642081,-500.0,0.00036819,7]
[310303870,1704468642093,-500.0,0.00036819,7]
[310303871,1704468642102,-500.0,0.00036819,7]
[310303872,1704468642111,-500.0,0.00036819,7]
[310303873,1704468642121,-500.0,0.00036819,7]
[310303874,1704468642131,-500.0,0.00036819,7]
[310303875,1704468642140,-155.0,0.0003685,2]
[310303876,1704468642151,-500.0,0.00036986,7]
[310303877,1704468642162,-500.0,0.00036986,7]
[310303878,1704468642176,-500.0,0.00036986,7]
[310303879,1704468642189,-500.0,0.00036986,7]
[310303880,1704468642201,-500.0,0.00036986,7]
[310303881,1704468642212,-500.0,0.00036986,7]
[310303883,1704468642223,-1224.74,0.00036986,7]
[310303885,1704468642234,-500.0,0.00036986,7]
[310303887,1704468642244,-2052.91,0.00036986,7]
[310303889,1704468642254,-500.0,0.00036986,7]
[310303890,1704468642265,-674.23,0.00036986,7]
[310303891,1704468642275,-853.72,0.00036986,7]
[310303892,1704468642286,-500.0,0.00036986,7]
[310303893,1704468642296,-2205.94,0.00036986,7]
[310303894,1704468642306,-28300.74,0.00036986,3]
[310303895,1704468642316,-5704.49,0.00036986,7]
[310303897,1704468642325,-1041.92,0.00036986,7]
[310303898,1704468642335,-500.0,0.00036986,7]
[310303899,1704468642344,-450.4775009,0.00036986,7]
[310303900,1704468642353,-500.0,0.00036986,7]
[310303901,1704468642364,-853.97,0.00036986,7]
[310303902,1704468642373,-866.43,0.00036986,7]
[310303903,1704468642383,-3712.17,0.00036986,7]
[310303906,1704468642392,-523.71661364,0.00036986,7]
[310303909,1704468642401,-500.0,0.00036986,7]
[310303910,1704468642411,-500.0,0.00036986,7]
[310303911,1704468642420,-1000.0,0.00037,37]
[310303912,1704468642430,-2944.133618,0.00037075,2]
[310303913,1704468642442,-500.0,0.00037092,7]
[310303915,1704468642451,-500.0,0.00037092,7]
[310303916,1704468642462,-500.0,0.00037092,7]
[310303918,1704468642472,-500.0,0.00037093,7]
[310303919,1704468642482,-500.0,0.00037093,7]
[310303920,1704468642491,-500.0,0.00037093,7]
[310303921,1704468642501,-500.0,0.00037093,7]
[310303922,1704468642512,-500.0,0.00037093,7]
[310303923,1704468642521,-500.0,0.00037093,7]
[310303924,1704468642530,-500.0,0.00037093,7]
[310303925,1704468642539,-500.0,0.00037093,7]
[310303926,1704468642549,-298.327248,0.000372,9]
[310303927,1704468642559,-1271.86892421,0.00037249,2]
[310303928,1704468642569,-2198.71546308,0.00037258,7]
[310303930,1704468642579,-500.0,0.0003726,7]
[310303932,1704468642588,-500.0,0.0003726,7]
[310303934,1704468642598,-500.0,0.0003726,7]
[310303935,1704468642607,-500.0,0.0003726,7]
[310303937,1704468642617,-500.0,0.0003726,7]
[310303939,1704468642626,-500.0,0.0003726,7]
[310303940,1704468642636,-1224.74,0.0003726,7]
[310303941,1704468642645,-500.0,0.0003726,7]
[310303943,1704468642655,-2052.91,0.0003726,7]
[310303944,1704468642664,-500.0,0.0003726,7]
[310303946,1704468642673,-674.23,0.0003726,7]
[310303947,1704468642685,-853.72,0.0003726,7]
[310303948,1704468642694,-500.0,0.0003726,7]
[310303949,1704468642704,-28300.74,0.0003726,3]
[310303951,1704468642713,-2205.94,0.0003726,7]
[310303953,1704468642722,-5704.49,0.0003726,7]
[310303954,1704468642731,-1041.92,0.0003726,7]
[310303955,1704468642741,-500.0,0.0003726,7]
[310303956,1704468642750,-500.0,0.0003726,7]
[310303957,1704468642759,-853.97,0.0003726,7]
[310303958,1704468642769,-866.43,0.0003726,7]
[310303960,1704468642779,-3712.17,0.0003726,7]
[310303962,1704468642788,-500.0,0.0003726,7]
[310303964,1704468642798,-500.0,0.0003726,7]
[310303966,1704468642807,-500.0,0.0003732,2]
[310303967,1704468642816,-500.0,0.0003732,2]
[310303968,1704468642826,-500.0,0.0003732,2]
[310303969,1704468642835,-500.0,0.0003732,2]
[310303970,1704468642844,-500.0,0.0003732,7]
[310303971,1704468642852,-500.0,0.0003732,7]
[310303972,1704468642862,-500.0,0.0003732,7]
[310303973,1704468642871,-500.0,0.0003732,7]
[310303974,1704468642881,-500.0,0.00037366,7]
[310303976,1704468642890,-500.0,0.00037366,7]
[310303977,1704468642899,-500.0,0.00037367,7]
[310303979,1704468642909,-500.0,0.00037367,7]
[310303980,1704468642918,-500.0,0.00037367,7]
[310303981,1704468642928,-500.0,0.00037367,7]
[310303982,1704468642940,-500.0,0.00037367,7]
[310303983,1704468642949,-500.0,0.00037367,7]
[310303984,1704468642961,-500.0,0.00037367,7]
[310303985,1704468642970,-372.08357054,0.00037532,4]
[310303986,1704468642980,-154.86060689,0.00037533,4]
[310303987,1704468642990,-500.0,0.00037534,7]
[310303988,1704468643000,-500.0,0.00037534,7]
[310303989,1704468643011,-500.0,0.00037534,7]
[310303990,1704468643021,-500.0,0.00037534,7]
[310303991,1704468643031,-500.0,0.00037534,7]
[310303992,1704468643042,-500.0,0.00037534,7]
[310303993,1704468643052,-1224.74,0.00037534,7]
[310303994,1704468643062,-500.0,0.00037534,7]
[310303996,1704468643073,-2052.91,0.00037534,7]
[310303997,1704468643084,-500.0,0.00037534,7]
[310303999,1704468643094,-674.23,0.00037534,7]
[310304001,1704468643104,-853.72,0.00037534,7]
[310304003,1704468643114,-500.0,0.00037534,7]
[310304005,1704468643124,-28300.74,0.00037534,3]
[310304006,1704468643133,-2205.94,0.00037534,7]
[310304008,1704468643143,-5704.49,0.00037534,7]
[310304010,1704468643152,-1041.92,0.00037534,7]
[310304012,1704468643161,-500.0,0.00037534,7]
[310304013,1704468643171,-500.0,0.00037534,7]
[310304015,1704468643181,-853.97,0.00037534,7]
[310304017,1704468643193,-866.43,0.00037534,7]
[310304019,1704468643203,-3712.17,0.00037534,7]
[310304021,1704468643211,-500.0,0.00037534,7]
[310304022,1704468643220,-500.0,0.00037534,7]
[310304024,1704468643229,-564.16201128,0.0003764,7]
[310304026,1704468643238,-500.0,0.0003764,7]
[310304028,1704468643248,-252.53534228,0.00037641,7]
[310304029,1704468643258,-500.0,0.00037641,7]
[310304031,1704468643267,-500.0,0.00037641,7]
[310304033,1704468643277,-500.0,0.00037641,7]
[310304035,1704468643286,-500.0,0.00037641,7]
[310304036,1704468643295,-500.0,0.00037641,7]
[310304038,1704468643305,-500.0,0.00037641,7]
[310304040,1704468643315,-153.0,0.00037753,2]
[310304042,1704468643324,-153.0,0.00037753,2]
[310304043,1704468643333,-64837.0,0.00037777,4]
[310304045,1704468643343,-500.0,0.00037808,7]
[310304047,1704468643352,-500.0,0.00037808,7]
[310304048,1704468643361,-500.0,0.00037808,7]
[310304050,1704468643371,-246.62024488,0.00037808,7]
[310304052,1704468643381,-500.0,0.00037808,7]
[310304058,1704468643466,-500.0,0.00037808,7]
[310304060,1704468643485,-1224.74,0.00037808,7]
[310304062,1704468643495,-500.0,0.00037808,7]
[310304064,1704468643506,-2052.91,0.00037808,7]
[310304066,1704468643515,-500.0,0.00037808,7]
[310304068,1704468643524,-674.23,0.00037808,7]
[310304069,1704468643534,-853.72,0.00037808,7]
[310304070,1704468643543,-500.0,0.00037808,7]
[310304071,1704468643552,-28300.74,0.00037808,3]
[310304072,1704468643562,-2205.94,0.00037808,7]
[310304073,1704468643572,-5704.49,0.00037808,7]
[310304074,1704468643584,-1041.92,0.00037808,7]
[310304075,1704468643594,-500.0,0.00037808,7]
[310304076,1704468643604,-500.0,0.00037808,7]
[310304077,1704468643614,-853.97,0.00037808,7]
[310304078,1704468643623,-866.43,0.00037808,7]
[310304079,1704468643631,-3712.17,0.00037808,7]
[310304080,1704468643641,-500.0,0.00037808,7]
[310304081,1704468643652,-500.0,0.00037808,7]
[310304082,1704468643663,-500.0,0.00037914,7]
[310304083,1704468643672,-500.0,0.00037915,7]
[310304084,1704468643682,-500.0,0.00037915,7]
[310304085,1704468643693,-500.0,0.00037915,7]
[310304086,1704468643703,-394.6573273,0.00037915,7]
[310304087,1704468643712,-500.0,0.00037915,7]
[310304088,1704468643721,-500.0,0.00037915,7]
[310304089,1704468643731,-250.0,0.00038,2]
[310304090,1704468643740,-44420.3169515,0.00038,30]
[310304091,1704468643886,-10484.0225358,0.00020206,2]
[310304092,1704468643895,-11290.63,0.0003599,3]
[310304093,1704468643904,-12408.25282689,0.00038,30]
[310304234,1704469832157,-237.53967209,0.0002065,2]
[310304235,1704469832168,-273.27943354,0.00020728,2]
[310304236,1704469832178,-3868.62349839,0.00020729,3]
[310304287,1704469840140,-166.24243892,0.00020649,2]
[310304290,1704469840153,-2705.78299771,0.00020729,2]
[310304292,1704469840165,-14938.76456335,0.00020729,2]
[310304294,1704469840179,-2208.05351062,0.00020729,2]
[310304297,1704469840191,-61143.13028372,0.00020729,2]
[310304299,1704469840204,-154.86062544,0.0002073,4]
[310304301,1704469840215,-2509.67018179,0.0002073,2]
[310304306,1704469840227,-369.31689779,0.0002073,2]
[310304310,1704469840238,-7856.7609539,0.0002073,2]
[310304315,1704469840249,-26389.64216715,0.0002073,2]
[310304319,1704469840260,-2870.14969708,0.00020735,2]
[310304322,1704469840272,-520.42865446,0.00020735,2]
[310304325,1704469840284,-285.42309706,0.00020735,2]
[310304328,1704469840294,-154.86062544,0.00020735,2]
[310304333,1704469840305,-154.86062544,0.00020736,2]
[310304337,1704469840316,-1238.62873412,0.00020736,2]
[310304342,1704469840328,-642.26237757,0.00020737,2]
[310304346,1704469840338,-261.48680774,0.00020737,2]
[310304350,1704469840350,-253.29346904,0.00020738,2]
[310304354,1704469840361,-7935.87115541,0.00020738,2]
[310304357,1704469840371,-36787.38326752,0.00020738,2]
[310304360,1704469840381,-154.86062544,0.00020739,2]
[310304363,1704469840390,-975.04064545,0.00020739,2]
[310304367,1704469840401,-553.52733063,0.0002074,2]
[310304371,1704469840412,-1464.84555445,0.0002074,2]
[310304374,1704469840422,-852.63544921,0.00020741,2]
[310304377,1704469840433,-1480.260341,0.00020784,2]
[310304380,1704469840443,-20018.8435106,0.00021153,2]
[310304383,1704469840454,-180.8494277,0.00021165,2]
[310304386,1704469840465,-156.68506121,0.00022,2]
[310304389,1704469840476,-292.18391192,0.00022,4]
[310304392,1704469840486,-3913.18170102,0.00022,2]
[310304397,1704469840497,-4998.54604256,0.00022,2]
[310304400,1704469840507,-174.759987,0.00022185,2]
[310304403,1704469840517,-265.2656265,0.00023004,2]
[310304406,1704469840528,-427.94025039,0.00023288,2]
[310304409,1704469840540,-288.34806615,0.00023288,2]
[310304411,1704469840550,-500.0,0.00023288,2]
[310304414,1704469840560,-189.64890161,0.00023288,2]
[310304417,1704469840569,-154.79876161,0.00024349,2]
[310304419,1704469840579,-5463.02756486,0.00024462,2]
[310304421,1704469840589,-2482.39965936,0.00025,2]
[310304423,1704469840599,-4705.82021629,0.00025,2]
[310304425,1704469840611,-297.15139112,0.00027171,2]
[310304428,1704469840626,-154.8915759,0.00027181,2]
[310304430,1704469840637,-155.0,0.00027397,2]
[310304432,1704469840647,-372.08357054,0.00029742,2]
[310304434,1704469840658,-685.71824329,0.0003,4]
[310304436,1704469840670,-6538.37354299,0.0003,4]
[310304438,1704469840681,-169.1175598,0.0003,5]
[310304439,1704469840692,-243.43593693,0.0003,4]
[310304440,1704469840705,-243.0,0.0003,2]
[310304441,1704469840716,-7029.07521928,0.00031312,4]
[310304442,1704469840727,-4778.80176436,0.00031313,4]
[310304443,1704469840739,-5371.59557353,0.00031313,4]
[310304444,1704469840750,-26400.44178612,0.00031313,2]
[310304445,1704469840762,-15102.34257872,0.00031313,4]
[310304446,1704469840772,-1000.0,0.00034,7]
[310304448,1704469840784,-774.05615627,0.00034198,4]
[310304449,1704469840794,-2000.0,0.000345,2]
[310304450,1704469840805,-1766.480171,0.00034521,2]
[310304451,1704469840818,-590.61742421,0.00035,2]
[310304452,1704469840829,-309.64391027,0.00035,4]
[310304453,1704469840840,-604.75900089,0.00035,2]
[310304454,1704469840852,-2688.24641711,0.00035,4]
[310304455,1704469840864,-2536.46839359,0.0003538,2]
[310304456,1704469840875,-634.1170984,0.0003538,2]
[310304457,1704469840886,-507.29367872,0.0003538,2]
[310304458,1704469840897,-1000.0,0.0003538,10]
[310304459,1704469840908,-445.0,0.00035452,2]
[310304460,1704469840919,-616.04881773,0.0003561,4]
[310304461,1704469840928,-47006.99796797,0.00035611,14]
[310304463,1704469840938,-429.09420791,0.00035612,2]
[310304465,1704469840948,-233.74125022,0.00035612,4]
[310304466,1704469840959,-500.0,0.00035612,4]
[310304467,1704469840970,-248.65192318,0.00035612,4]
[310304469,1704469840979,-256.13353561,0.00035612,4]
[310304470,1704469840990,-187.34002362,0.00035612,4]
[310304471,1704469841000,-183.40296445,0.00035612,7]
[310304472,1704469841010,-517.23667621,0.00035612,7]
[310304473,1704469841021,-1374.74291563,0.00035613,4]
[310304474,1704469841032,-176.85785123,0.00035613,4]
[310304475,1704469841044,-302.0194232,0.00035613,4]
[310304476,1704469841055,-3731.18038286,0.00035613,4]
[310304477,1704469841068,-29911.14627736,0.00035613,4]
[310304478,1704469841079,-4793.5050372,0.00035613,4]
[310304479,1704469841090,-1089.98414499,0.00035613,4]
[310304480,1704469841101,-631.62085425,0.00035613,4]
[310304481,1704469841112,-560.85484535,0.00035614,4]
[310304482,1704469841124,-2928.91398949,0.00035614,4]
[310304483,1704469841136,-227.91174222,0.00035614,4]
[310304484,1704469841147,-1320.81396188,0.00035614,4]
[310304485,1704469841158,-460.20017512,0.00035614,4]
[310304486,1704469841170,-781.90839515,0.00035614,3]
[310304487,1704469841181,-1032.36442995,0.00035615,4]
[310304488,1704469841192,-284.72364614,0.00035615,4]
[310304489,1704469841208,-221.71877652,0.00035615,2]
[310304490,1704469841220,-2587.48805285,0.00035615,4]
[310304491,1704469841234,-585.73960469,0.00035615,4]
[310304492,1704469841246,-500.0,0.00035616,7]
[310304493,1704469841256,-500.0,0.00035616,7]
[310304494,1704469841266,-500.0,0.00035616,7]
[310304495,1704469841278,-500.0,0.00035616,7]
[310304496,1704469841289,-500.0,0.00035616,7]
[310304497,1704469841299,-500.0,0.00035616,7]
[310304499,1704469841312,-500.0,0.00035616,7]
[310304501,1704469841322,-500.0,0.00035616,7]
[310304502,1704469841332,-500.0,0.00035616,7]
[310304503,1704469841342,-450.8658779,0.00035616,2]
[310304504,1704469841353,-500.0,0.00035616,7]
[310304505,1704469841363,-500.0,0.00035616,7]
[310304506,1704469841373,-500.0,0.00035616,7]
[310304507,1704469841383,-500.0,0.00035616,7]
[310304508,1704469841393,-500.0,0.00035616,7]
[310304509,1704469841404,-500.0,0.00035616,7]
[310304510,1704469841414,-500.0,0.00035616,7]
[310304511,1704469841425,-500.0,0.00035616,7]
[310304512,1704469841435,-500.0,0.00035616,7]
[310304513,1704469841445,-500.0,0.00035616,7]
[310304514,1704469841458,-500.0,0.00035616,7]
[310304515,1704469841468,-500.0,0.00035616,7]
[310304516,1704469841478,-500.0,0.00035616,7]
[310304517,1704469841488,-500.0,0.00035616,7]
[310304518,1704469841499,-500.0,0.00035616,7]
[310304519,1704469841510,-1881.83,0.00035616,7]
[310304520,1704469841520,-572.07,0.00035616,7]
[310304525,1704469841677,-500.0,0.00035616,7]
[310304526,1704469841690,-500.0,0.00035616,7]
[310304527,1704469841700,-500.0,0.00035616,7]
[310304528,1704469841712,-782.58,0.00035616,7]
[310304529,1704469841721,-500.0,0.00035616,7]
[310304530,1704469841730,-500.0,0.00035616,7]
[310304531,1704469841740,-500.0,0.00035616,7]
[310304532,1704469841749,-500.0,0.00035616,7]
[310304533,1704469841759,-500.0,0.00035616,7]
[310304534,1704469841767,-500.0,0.00035616,7]
[310304535,1704469841777,-500.0,0.00035616,7]
[310304536,1704469841786,-618.05,0.00035616,7]
[310304537,1704469841795,-25977.4,0.00035616,3]
[310304538,1704469841804,-303.33944967,0.00035616,2]
[310304539,1704469841814,-500.0,0.00035616,7]
[310304540,1704469841823,-500.0,0.00035616,7]
[310304541,1704469841833,-500.0,0.00035616,7]
[310304542,1704469841843,-500.0,0.00035616,7]
[310304543,1704469841852,-794.23,0.00035616,7]
[310304544,1704469841862,-955.09,0.00035616,7]
[310304545,1704469841872,-340.68909797,0.00035616,7]
[310304546,1704469841882,-500.0,0.00035616,7]
[310304547,1704469841891,-2022.11,0.00035616,7]
[310304548,1704469841900,-500.0,0.00035616,7]
[310304549,1704469841910,-3402.82,0.00035616,7]
[310304550,1704469841920,-5229.12,0.00035616,7]
[310304551,1704469841928,-500.0,0.00035616,7]
[310304552,1704469841938,-537.72586878,0.00035616,7]
[310304553,1704469841947,-782.81,0.00035616,7]
[310304554,1704469841958,-500.0,0.00035616,7]
[310304555,1704469841968,-500.0,0.00035616,7]
[310304556,1704469841978,-500.0,0.00035616,7]
[310304557,1704469841988,-500.0,0.00035616,7]
[310304558,1704469841997,-500.0,0.00035616,7]
[310304559,1704469842006,-500.0,0.00035616,7]
[310304560,1704469842016,-1122.68,0.00035616,7]
[310304561,1704469842025,-500.0,0.00035616,7]
[310304562,1704469842034,-500.0,0.00035616,7]
[310304563,1704469842043,-184.373406,0.00035616,120]
[310304564,1704469842052,-155.21939901,0.0003564,2]
[310304565,1704469842061,-171.06217658,0.00035677,2]
[310304566,1704469842070,-1766.480171,0.00035798,2]
[310304567,1704469842080,-500.0,0.0003589,7]
[310304568,1704469842089,-500.0,0.0003589,7]
[310304569,1704469842099,-500.0,0.0003589,7]
[310304570,1704469842108,-500.0,0.0003589,7]
[310304571,1704469842117,-500.0,0.0003589,7]
[310304572,1704469842127,-500.0,0.0003589,7]
[310304573,1704469842136,-500.0,0.0003589,7]
[310304574,1704469842146,-500.0,0.0003589,7]
[310304575,1704469842156,-500.0,0.0003589,7]
[310304576,1704469842165,-500.0,0.0003589,7]
[310304577,1704469842174,-500.0,0.0003589,7]
[310304578,1704469842184,-500.0,0.0003589,7]
[310304579,1704469842194,-500.0,0.0003589,7]
[310304580,1704469842208,-500.0,0.0003589,7]
[310304581,1704469842218,-500.0,0.0003589,7]
[310304582,1704469842228,-500.0,0.0003589,7]
[310304583,1704469842238,-500.0,0.0003589,7]
[310304584,1704469842248,-500.0,0.0003589,7]
[310304585,1704469842259,-500.0,0.0003589,7]
[310304586,1704469842268,-500.0,0.0003589,7]
[310304587,1704469842278,-500.0,0.0003589,7]
[310304588,1704469842289,-500.0,0.0003589,7]
[310304589,1704469842299,-500.0,0.0003589,7]
[310304590,1704469842308,-1881.83,0.0003589,7]
[310304591,1704469842318,-572.07,0.0003589,7]
[310304592,1704469842328,-500.0,0.0003589,7]
[310304593,1704469842338,-500.0,0.0003589,7]
[310304594,1704469842347,-500.0,0.0003589,7]
[310304595,1704469842357,-782.58,0.0003589,7]
[310304596,1704469842366,-500.0,0.0003589,7]
[310304597,1704469842376,-500.0,0.0003589,7]
[310304598,1704469842387,-331.64614035,0.0003589,7]
[310304599,1704469842396,-500.0,0.0003589,7]
[310304600,1704469842406,-500.0,0.0003589,7]
[310304601,1704469842415,-500.0,0.0003589,7]
[310304602,1704469842425,-618.05,0.0003589,7]
[310304603,1704469842435,-25977.4,0.0003589,3]
[310304604,1704469842445,-500.0,0.0003589,7]
[310304607,1704469842454,-500.0,0.0003589,7]
[310304610,1704469842467,-500.0,0.0003589,7]
[310304613,1704469842478,-500.0,0.0003589,7]
[310304616,1704469842488,-794.23,0.0003589,7]
[310304618,1704469842500,-955.09,0.0003589,7]
[310304619,1704469842510,-2022.11,0.0003589,7]
[310304620,1704469842520,-500.0,0.0003589,7]
[310304621,1704469842529,-3402.82,0.0003589,7]
[310304623,1704469842539,-5229.12,0.0003589,7]
[310304625,1704469842548,-500.0,0.0003589,7]
[310304626,1704469842558,-782.81,0.0003589,7]
[310304627,1704469842567,-500.0,0.0003589,7]
[310304628,1704469842577,-500.0,0.0003589,7]
[310304629,1704469842587,-500.0,0.0003589,7]
[310304630,1704469842596,-500.0,0.0003589,7]
[310304631,1704469842606,-500.0,0.0003589,7]
[310304633,1704469842616,-1122.68,0.0003589,7]
[310304634,1704469842626,-500.0,0.0003589,7]
[310304635,1704469842635,-500.0,0.0003589,7]
[310304636,1704469842645,-226.80773801,0.000359,4]
[310304637,1704469842654,-286.74832495,0.00036,4]
[310304638,1704469842663,-2219.58615498,0.00036,4]
[310304639,1704469842672,-199.57449726,0.00036,2]
[310304640,1704469842682,-1000.0,0.00036,36]
[310304641,1704469842692,-1000.57101,0.00036,2]
[310304642,1704469842701,-6161.54944516,0.00036152,2]
[310304643,1704469842715,-19604.36135836,0.00036152,2]
[310304644,1704469842724,-4116.91588525,0.00036152,2]
[310304645,1704469842734,-205.84579426,0.00036152,2]
[310304646,1704469842744,-680.98118108,0.00036152,2]
[310304647,1704469842753,-500.0,0.00036164,7]
[310304648,1704469842763,-500.0,0.00036164,7]
[310304649,1704469842772,-500.0,0.00036164,7]
[310304650,1704469842781,-500.0,0.00036164,7]
[310304651,1704469842791,-586.1627845,0.00036164,7]
[310304652,1704469842800,-206.3840092,0.00036164,7]
[310304653,1704469842809,-500.0,0.00036164,7]
[310304654,1704469842819,-500.0,0.00036164,7]
[310304655,1704469842828,-500.0,0.00036164,7]
[310304656,1704469842838,-500.0,0.00036164,7]
[310304657,1704469842847,-500.0,0.00036164,7]
[310304659,1704469842857,-500.0,0.00036164,7]
[310304660,1704469842866,-500.0,0.00036164,7]
[310304662,1704469842875,-500.0,0.00036164,7]
[310304664,1704469842885,-500.0,0.00036164,7]
[310304665,1704469842894,-500.0,0.00036164,7]
[310304666,1704469842903,-500.0,0.00036164,7]
[310304667,1704469842912,-500.0,0.00036164,7]
[310304668,1704469842922,-500.0,0.00036164,7]
[310304669,1704469842931,-1881.83,0.00036164,7]
[310304670,1704469842941,-572.07,0.00036164,7]
[310304671,1704469842950,-500.0,0.00036164,7]
[310304673,1704469842962,-500.0,0.00036164,7]
[310304675,1704469842971,-500.0,0.00036164,7]
[310304676,1704469842980,-782.58,0.00036164,7]
[310304678,1704469842990,-500.0,0.00036164,7]
[310304680,1704469843000,-500.0,0.00036164,7]
[310304682,1704469843009,-500.0,0.00036164,7]
[310304683,1704469843018,-500.0,0.00036164,7]
[310304684,1704469843028,-500.0,0.00036164,7]
[310304685,1704469843037,-618.05,0.00036164,7]
[310304686,1704469843046,-25977.4,0.00036164,3]
[310304687,1704469843055,-500.0,0.00036164,7]
[310304688,1704469843064,-500.0,0.00036164,7]
[310304689,1704469843073,-500.0,0.00036164,7]
[310304690,1704469843083,-500.0,0.00036164,7]
[310304691,1704469843093,-794.23,0.00036164,7]
[310304692,1704469843102,-955.09,0.00036164,7]
[310304693,1704469843111,-2022.11,0.00036164,7]
[310304695,1704469843120,-500.0,0.00036164,7]
[310304696,1704469843130,-3402.82,0.00036164,7]
[310304697,1704469843139,-5229.12,0.00036164,7]
[310304698,1704469843148,-500.0,0.00036164,7]
[310304699,1704469843157,-782.81,0.00036164,7]
[310304701,1704469843166,-500.0,0.00036164,7]
[310304703,1704469843176,-500.0,0.00036164,7]
[310304705,1704469843186,-500.0,0.00036164,7]
[310304707,1704469843195,-500.0,0.00036164,7]
[310304709,1704469843210,-1122.68,0.00036164,7]
[310304712,1704469843219,-500.0,0.00036164,7]
[310304713,1704469843228,-500.0,0.00036164,7]
[310304714,1704469843238,-515.50501771,0.00036437,7]
[310304715,1704469843248,-500.0,0.00036438,7]
[310304716,1704469843257,-500.0,0.00036438,7]
[310304717,1704469843266,-500.0,0.00036438,7]
[310304718,1704469843275,-500.0,0.00036438,7]
[310304719,1704469843287,-500.0,0.00036438,7]
[310304720,1704469843296,-500.0,0.00036438,7]
[310304721,1704469843305,-500.0,0.00036438,7]
[310304722,1704469843315,-500.0,0.00036438,7]
[310304723,1704469843324,-500.0,0.00036438,7]
[310304724,1704469843334,-500.0,0.00036438,7]
[310304725,1704469843343,-500.0,0.00036438,7]
[310304726,1704469843353,-500.0,0.00036438,7]
[310304727,1704469843362,-500.0,0.00036438,7]
[310304728,1704469843371,-1881.83,0.00036438,7]
[310304729,1704469843381,-572.07,0.00036438,7]
[310304730,1704469843390,-500.0,0.00036438,7]
[310304731,1704469843399,-500.0,0.00036438,7]
[310304732,1704469843408,-782.58,0.00036438,7]
[310304733,1704469843417,-500.0,0.00036438,7]
[310304734,1704469843426,-500.0,0.00036438,7]
[310304735,1704469843436,-500.0,0.00036438,7]
[310304736,1704469843445,-618.05,0.00036438,7]
[310304737,1704469843455,-17564.7772888,0.00036438,3]
[310304738,1704469843519,-1171.03098542,0.00036438,3]
[310304739,1704469843986,-1487.5864219,0.00036438,3]
[310304740,1704469844008,-322.09689119,0.00020728,2]
[310304741,1704469844017,-419.46095804,0.00021,2]
[310304742,1704469844026,-99.94215077,0.00036438,3]
[310304773,1704469850430,154.86062544,0.00018655,3]
[310304774,1704469852246,973.59117367,0.00018655,2]
[310304775,1704469854017,1464.84555445,0.00015546,2]
[310304779,1704469917394,154.86062544,0.00015546,2]
[310304781,1704469920612,618.84880669,0.00015546,2]
[310304783,1704469926451,533.57920432,0.00015546,2]
[310304784,1704469928764,154.86062544,0.00015546,2]
[310304785,1704469932774,18847.36572562,0.00015546,2]
[310304786,1704469934293,154.86062544,0.00015546,2]
[310304787,1704469935358,155.7673137,0.00015546,2]